fUSD/lending_fUSD_20260425
["ID","MTS","AMOUNT","RATE_DAILY","PERIOD"]
[421114911,1777081174064,-308.07308376,7.666e-05,2]
[421114912,1777081174321,-168.02303206,7.666e-05,2]
[421114913,1777081179639,-40.14064188,7.666e-05,2]
[421114914,1777081180079,-542.71015587,7.666e-05,2]
[421114915,1777081180108,-150.0,7.666e-05,2]
[421114916,1777081180136,-250.0,7.666e-05,2]
[421114917,1777081180215,-8034.3084045,7.667e-05,2]
[421114919,1777081305292,-302.15,7.436e-05,2]
[421114920,1777081305319,-4418.45,7.514e-05,2]
[421114921,1777081305347,-239.764,7.514e-05,2]
[421114922,1777081305400,-79.282,7.514e-05,2]
[421114923,1777081311332,-151.07,7.589e-05,2]
[421114924,1777081311361,-300.0,7.665e-05,2]
[421114925,1777081311389,-242.82429317,7.666e-05,2]
[421114926,1777081311422,-500.0,7.666e-05,2]
[421114927,1777081311455,-500.0,7.666e-05,2]
[421114928,1777081311490,-500.0,7.666e-05,2]
[421114929,1777081311522,-500.0,7.666e-05,2]
[421114930,1777081311554,-500.0,7.666e-05,2]
[421114931,1777081311588,-500.0,7.666e-05,2]
[421114932,1777081311620,-356.83862579,7.666e-05,2]
[421114933,1777081311652,-500.0,7.666e-05,2]
[421114934,1777081311684,-398.54416208,7.666e-05,2]
[421114935,1777081311844,-101.45583792,7.666e-05,2]
[421114936,1777081314186,-533.27316011,7.666e-05,2]
[421114937,1777081314215,-301.63594689,7.666e-05,2]
[421114938,1777081314249,-500.0,7.666e-05,2]
[421114939,1777081314282,-500.0,7.666e-05,2]
[421114940,1777081314315,-500.0,7.666e-05,2]
[421114941,1777081314349,-500.0,7.666e-05,2]
[421114942,1777081314383,-500.0,7.666e-05,2]
[421114943,1777081314417,-500.0,7.666e-05,2]
[421114944,1777081314451,-504.7196574,7.666e-05,2]
[421114945,1777081314485,-500.0,7.666e-05,2]
[421114946,1777081314654,-320.7524712,7.666e-05,2]
[421114948,1777081442697,-409.57617614,7.666e-05,2]
[421114949,1777081442726,-235.11022874,7.666e-05,2]
[421114950,1777081442756,-1200.0,7.666e-05,2]
[421114951,1777081442785,-230.61,7.666e-05,2]
[421114952,1777081442813,-183.0,7.666e-05,2]
[421114953,1777081442842,-150.0,7.666e-05,2]
[421114954,1777081442871,-300.0,7.666e-05,2]
[421114955,1777081443092,-4583.41719024,7.667e-05,2]
[421114956,1777081448103,-10000.01,7.667e-05,2]
[421114957,1777081478763,-5000.0,7.667e-05,2]
[421114958,1777081479898,-5000.0,7.667e-05,2]
[421114959,1777081480935,-5000.0,7.667e-05,2]
[421114960,1777081481910,-5000.0,7.667e-05,2]
[421114961,1777081482888,-5000.0,7.667e-05,2]
[421114962,1777081483845,-5000.0,7.667e-05,2]
[421114963,1777081484745,-5000.0,7.667e-05,2]
[421114964,1777081485467,-5000.0,7.657e-05,2]
[421114965,1777081485830,-5000.0,7.657e-05,2]
[421114966,1777081486158,-5000.0,7.657e-05,2]
[421114967,1777081486501,-1239.02971027,7.657e-05,2]
[421114968,1777081486531,-3760.97028973,7.667e-05,2]
[421114969,1777081487982,-5000.0,7.667e-05,2]
[421114970,1777081488050,-5000.0,7.667e-05,2]
[421114971,1777081488079,-5000.0,7.667e-05,2]
[421114972,1777081488119,-5000.0,7.667e-05,2]
[421114973,1777081488210,-5000.0,7.667e-05,2]
[421114974,1777081490116,-286.7033233,7.666e-05,2]
[421114975,1777081490141,-4713.2966767,7.667e-05,2]
[421114976,1777081490811,-5000.0,7.667e-05,2]
[421114977,1777081491589,-5000.0,7.667e-05,2]
[421114978,1777081492446,-5000.0,7.667e-05,2]
[421114979,1777081493391,-5000.0,7.667e-05,2]
[421114980,1777081494205,-5000.0,7.667e-05,2]
[421114981,1777081495487,-5000.0,7.667e-05,2]
[421114982,1777081497497,-5000.0,7.667e-05,2]
[421114983,1777081506439,1645.0,7.667e-05,3]
[421114984,1777081511574,184.0,7.667e-05,3]
[421114985,1777081512603,156.0,7.667e-05,3]
[421114986,1777081518279,200.0,0.000165,120]
[421114987,1777081545783,-5000.0,7.567e-05,2]
[421114988,1777081555552,-600.9744,7.567e-05,2]
[421114989,1777081555576,-150.0,7.57e-05,2]
[421114990,1777081555598,-150.0,7.57e-05,2]
[421114991,1777081555621,-150.0,7.57e-05,2]
[421114992,1777081555643,-150.24265673,7.57e-05,2]
[421114993,1777081555665,-262.70201487,7.57e-05,2]
[421114994,1777081555693,-150.18029948,7.57e-05,2]
[421114995,1777081555716,-50.75062892,7.57e-05,2]
[421114996,1777081567217,1681.0,7.667e-05,3]
[421114997,1777081578174,156.0,7.667e-05,3]
[421114998,1777081590975,200.0,0.000165,120]
[421114999,1777081622884,267.39834586,8.327e-05,54]
[421115000,1777081628746,1597.0,7.667e-05,3]
[421115001,1777081634937,157.0,7.667e-05,3]
[421115003,1777081688706,1118.0,7.667e-05,3]
[421115004,1777081694731,157.0,7.667e-05,3]
[421115005,1777081699903,-361.4334,7.566e-05,2]
[421115006,1777081699933,-300.0,7.566e-05,2]
[421115007,1777081699962,-300.0,7.566e-05,2]
[421115008,1777081700025,-8077.1432,7.567e-05,2]
[421115009,1777081717971,-10000.01,7.567e-05,2]
[421115010,1777081718121,-10000.01,7.567e-05,2]
[421115011,1777081718243,-10000.01,7.567e-05,2]
[421115012,1777081723960,-10000.01,7.567e-05,2]
[421115013,1777081741145,-3291.9235,7.567e-05,2]
[421115014,1777081741182,-3416.163,7.567e-05,2]
[421115015,1777081741237,-10000.01,7.567e-05,2]
[421115016,1777081741357,-3452.1452,7.567e-05,2]
[421115017,1777081741383,-3095.7196,7.567e-05,2]
[421115018,1777081745618,-225.34182187,7.57e-05,2]
[421115019,1777081745649,-150.0,7.57e-05,2]
[421115020,1777081745678,-150.0,7.57e-05,2]
[421115021,1777081745783,166.0,7.567e-05,3]
[421115022,1777081745865,-8949.32635626,7.641e-05,2]
[421115023,1777081748634,1461.0,7.567e-05,3]
[421115024,1777081749873,2000.0,0.00016438,120]
[421115025,1777081750109,2000.0,0.00016438,120]
[421115026,1777081750379,2000.0,0.00016438,120]
[421115027,1777081751003,2000.0,0.00016438,120]
[421115028,1777081751273,2000.0,0.00016438,120]
[421115029,1777081751528,2000.0,0.00016438,120]
[421115030,1777081751778,2000.0,0.00016438,120]
[421115031,1777081752170,2000.0,0.00016438,120]
[421115032,1777081752421,2000.0,0.00016438,120]
[421115033,1777081752655,2000.0,0.00016438,120]
[421115034,1777081752885,2000.0,0.00016438,120]
[421115035,1777081753173,2000.0,0.00016438,120]
[421115036,1777081753437,2000.0,0.00016438,120]
[421115037,1777081753693,2000.0,0.00016438,120]
[421115038,1777081753923,2000.0,0.00016438,120]
[421115039,1777081754161,2000.0,0.00016438,120]
[421115040,1777081754424,2000.0,0.00016438,120]
[421115041,1777081754597,157.0,7.567e-05,3]
[421115042,1777081754658,2000.0,0.00016438,120]
[421115043,1777081754902,2000.0,0.00016438,120]
[421115044,1777081755156,2000.0,0.00016438,120]
[421115045,1777081755399,2000.0,0.00016438,120]
[421115046,1777081756736,2000.0,0.00016438,120]
[421115047,1777081756778,2000.0,0.00016438,120]
[421115048,1777081756831,2000.0,0.00016438,120]
[421115049,1777081756876,2000.0,0.00016438,120]
[421115050,1777081756923,2000.0,0.00016438,120]
[421115051,1777081756966,2000.0,0.00016438,120]
[421115052,1777081757050,2000.0,0.00016438,120]
[421115053,1777081757295,2000.0,0.00016438,120]
[421115054,1777081757531,2000.0,0.00016438,120]
[421115055,1777081757775,2000.0,0.00016438,120]
[421115056,1777081758020,2000.0,0.00016438,120]
[421115057,1777081758281,2000.0,0.00016438,120]
[421115058,1777081758536,2000.0,0.00016438,120]
[421115059,1777081758765,2000.0,0.00016438,120]
[421115060,1777081758981,2000.0,0.00016438,120]
[421115061,1777081759217,2000.0,0.00016438,120]
[421115062,1777081759478,2000.0,0.00016438,120]
[421115063,1777081759705,2000.0,0.00016438,120]
[421115064,1777081759926,2000.0,0.00016438,120]
[421115065,1777081760158,2000.0,0.00016438,120]
[421115066,1777081760398,2000.0,0.00016438,120]
[421115067,1777081760647,2000.0,0.00016438,120]
[421115068,1777081760892,2000.0,0.00016438,120]
[421115069,1777081761461,2000.0,0.00016438,120]
[421115070,1777081761701,2000.0,0.00016438,120]
[421115071,1777081761959,2000.0,0.00016438,120]
[421115072,1777081762197,2000.0,0.00016438,120]
[421115073,1777081762920,2000.0,0.00016438,120]
[421115074,1777081762954,2000.0,0.00016438,120]
[421115075,1777081762993,2000.0,0.00016438,120]
[421115076,1777081763191,2000.0,0.00016438,120]
[421115077,1777081763433,2000.0,0.00016438,120]
[421115078,1777081763669,2000.0,0.00016438,120]
[421115079,1777081763923,2000.0,0.00016438,120]
[421115080,1777081764191,819.5930587,0.00016438,120]
[421115083,1777081831634,-4891.61728482,7.566e-05,2]
[421115084,1777081831646,-728.743811,7.566e-05,2]
[421115085,1777081831686,-1700.23783598,7.566e-05,2]
[421115086,1777081831698,-491.75,7.566e-05,2]
[421115087,1777081831710,-498.60816711,7.566e-05,2]
[421115094,1777081832013,-303.23755088,7.565e-05,2]
[421115096,1777081832023,-4170.93867905,7.566e-05,2]
[421115103,1777081832147,-362.36399931,7.566e-05,2]
[421115109,1777081837872,-2117.06610196,7.566e-05,2]
[421115112,1777081837884,-1331.50731239,7.566e-05,2]
[421115114,1777081837896,-37731.77449459,7.566e-05,2]
[421115116,1777081837908,-14860.68728384,7.566e-05,2]
[421115119,1777081837928,-82765.71655459,7.566e-05,2]
[421115130,1777081838036,-7860.46543182,7.566e-05,2]
[421115131,1777081838091,-10077.89671165,7.566e-05,2]
[421115307,1777081840136,-1136.0,7.566e-05,2]
[421115308,1777081840184,-20232.96582522,7.566e-05,2]
[421115309,1777081840271,-36374.86501932,7.566e-05,2]
[421115310,1777081840283,-2027.67609915,7.566e-05,2]
[421115312,1777081840380,-1596.28143934,7.566e-05,2]
[421115314,1777081840392,-1181.0,7.566e-05,2]
[421115352,1777081840734,-0.06166529,7.566e-05,2]
[421115602,1777081843122,-3390.32109516,7.566e-05,2]
[421115634,1777081843484,-1016.25141604,7.566e-05,2]
[421115642,1777081843562,-50.8907154,7.566e-05,2]
[421115814,1777081845747,-4655.03375475,7.566e-05,2]
[421115823,1777081845828,-538.15272733,7.566e-05,2]
[421115830,1777081845883,-509.0,7.566e-05,2]
[421115832,1777081845894,-325.28244658,7.566e-05,2]
[421115935,1777081846885,-5467.85699316,7.566e-05,2]
[421116282,1777081864814,1388.0,7.566e-05,3]
[421116283,1777081870284,157.0,7.566e-05,3]
[421116284,1777081925538,208.0,7.566e-05,3]
[421116285,1777081931379,157.0,7.566e-05,3]
[421116286,1777081988963,952.43019237,7.566e-05,3]
[421116308,1777083031931,-250.0,7.405e-05,2]
[421116309,1777083031941,-247.0,7.414e-05,2]
[421116310,1777083031951,-2559.97460835,7.552e-05,2]
[421116311,1777083031960,-300.0,7.563e-05,2]
[421116312,1777083031970,-1200.0,7.563e-05,2]
[421116313,1777083031981,-151.0,7.563e-05,2]
[421116314,1777083031990,-1000.0,7.564e-05,2]
[421116315,1777083032000,-155.356,7.564e-05,2]
[421116316,1777083032010,-4908.711,7.564e-05,2]
[421116317,1777083032019,-332.676,7.564e-05,2]
[421116318,1777083032029,-150.0,7.564e-05,2]
[421116319,1777083032038,-500.0,7.565e-05,2]
[421116320,1777083032048,-212.26628562,7.565e-05,2]
[421116321,1777083032057,-500.0,7.565e-05,2]
[421116322,1777083032066,-500.0,7.565e-05,2]
[421116323,1777083032075,-240.5895703,7.565e-05,2]
[421116324,1777083032085,-500.0,7.565e-05,2]
[421116325,1777083032095,-500.0,7.565e-05,2]
[421116326,1777083032105,-500.0,7.565e-05,2]
[421116327,1777083032115,-500.0,7.565e-05,2]
[421116328,1777083032124,-500.0,7.565e-05,2]
[421116329,1777083032134,-500.0,7.565e-05,2]
[421116330,1777083032143,-500.0,7.565e-05,2]
[421116331,1777083032154,-500.0,7.565e-05,2]
[421116332,1777083032165,-500.0,7.565e-05,2]
[421116333,1777083032175,-500.0,7.565e-05,2]
[421116334,1777083032184,-500.0,7.565e-05,2]
[421116335,1777083032194,-500.0,7.565e-05,2]
[421116336,1777083032204,-500.0,7.565e-05,2]
[421116337,1777083032215,-500.0,7.565e-05,2]
[421116338,1777083032227,-500.0,7.565e-05,2]
[421116339,1777083032236,-500.0,7.565e-05,2]
[421116340,1777083032246,-500.0,7.565e-05,2]
[421116342,1777083032256,-500.0,7.565e-05,2]
[421116344,1777083032265,-500.0,7.565e-05,2]
[421116346,1777083032275,-500.0,7.565e-05,2]
[421116348,1777083032285,-500.0,7.565e-05,2]
[421116349,1777083032294,-500.0,7.565e-05,2]
[421116351,1777083032304,-400.0,7.565e-05,2]
[421116353,1777083032314,-500.0,7.565e-05,2]
[421116354,1777083032323,-500.0,7.565e-05,2]
[421116355,1777083032332,-500.0,7.565e-05,2]
[421116356,1777083032342,-500.0,7.565e-05,2]
[421116357,1777083032351,-500.0,7.565e-05,2]
[421116358,1777083032361,-500.0,7.565e-05,2]
[421116359,1777083032371,-500.0,7.565e-05,2]
[421116360,1777083032380,-500.0,7.565e-05,2]
[421116361,1777083032390,-500.0,7.565e-05,2]
[421116362,1777083032399,-500.0,7.565e-05,2]
[421116363,1777083032409,-500.0,7.565e-05,2]
[421116364,1777083032418,-500.0,7.565e-05,2]
[421116365,1777083032428,-500.0,7.565e-05,2]
[421116366,1777083032437,-500.0,7.565e-05,2]
[421116367,1777083032447,-500.0,7.565e-05,2]
[421116368,1777083032457,-500.0,7.565e-05,2]
[421116369,1777083032467,-500.0,7.565e-05,2]
[421116370,1777083032476,-500.0,7.565e-05,2]
[421116371,1777083032486,-500.0,7.565e-05,2]
[421116372,1777083032496,-500.0,7.565e-05,2]
[421116373,1777083032505,-500.0,7.565e-05,2]
[421116374,1777083032515,-500.0,7.565e-05,2]
[421116375,1777083032524,-500.0,7.565e-05,2]
[421116376,1777083032534,-500.0,7.565e-05,2]
[421116377,1777083032543,-500.0,7.565e-05,2]
[421116378,1777083032552,-500.0,7.565e-05,2]
[421116379,1777083032561,-500.0,7.565e-05,2]
[421116380,1777083032571,-500.0,7.565e-05,2]
[421116381,1777083032580,-500.0,7.565e-05,2]
[421116382,1777083032589,-500.0,7.565e-05,2]
[421116383,1777083032599,-500.0,7.565e-05,2]
[421116384,1777083032608,-500.0,7.565e-05,2]
[421116385,1777083032617,-500.0,7.565e-05,2]
[421116386,1777083032627,-500.0,7.565e-05,2]
[421116387,1777083032636,-500.0,7.565e-05,2]
[421116388,1777083032646,-500.0,7.565e-05,2]
[421116389,1777083032656,-500.0,7.565e-05,2]
[421116390,1777083032665,-180.21017038,7.565e-05,2]
[421116391,1777083032675,-500.0,7.565e-05,2]
[421116392,1777083032684,-500.0,7.565e-05,2]
[421116393,1777083032693,-500.0,7.565e-05,2]
[421116394,1777083032702,-500.0,7.565e-05,2]
[421116395,1777083032712,-500.0,7.565e-05,2]
[421116396,1777083032721,-500.0,7.565e-05,2]
[421116397,1777083032730,-500.0,7.565e-05,2]
[421116398,1777083032739,-650.0,7.565e-05,2]
[421116399,1777083032749,-172.0,7.566e-05,3]
[421116400,1777083032758,-500.0,7.566e-05,2]
[421116401,1777083032768,-1261.0,7.566e-05,3]
[421116402,1777083032777,-199.0,7.566e-05,3]
[421116403,1777083032786,-3598.0812635,7.568e-05,2]
[421116404,1777083032795,-16309.56608028,7.568e-05,2]
[421116405,1777083032808,-10743.73198335,7.568e-05,2]
[421116406,1777083032821,-315.42809693,7.568e-05,2]
[421116407,1777083032832,-1529.40951778,7.568e-05,2]
[421116408,1777083032857,-1114.20970985,7.568e-05,2]
[421116415,1777083038120,-173.0,7.566e-05,3]
[421116416,1777083038130,-465.55537377,7.568e-05,2]
[421116417,1777083038421,-1898.96099122,7.568e-05,2]
[421116420,1777083038583,-12148.56389658,7.568e-05,2]
[421116421,1777083038594,-22921.64023375,7.568e-05,2]
[421116562,1777083040165,-56868.15687049,7.568e-05,2]
[421116564,1777083040177,-394.07604548,7.568e-05,2]
[421117162,1777083046096,-362.12889693,7.568e-05,2]
[421117173,1777083046186,-2019.82455211,7.568e-05,2]
[421117177,1777083046212,-322.8916,7.568e-05,2]
[421117187,1777083046303,-494.31698231,7.568e-05,2]
[421117548,1777084191209,-3900.0,7e-05,2]
[421117549,1777084191237,-206.7238,7.305e-05,2]
[421117550,1777084191284,-1786.5624,7.316e-05,2]
[421117551,1777084191393,-2140.4066,7.316e-05,2]
[421117552,1777084191422,-266.141,7.316e-05,2]
[421117553,1777084191451,-150.0,7.463e-05,2]
[421117554,1777084191479,-691.64153846,7.464e-05,2]
[421117555,1777084191507,-190.462161,7.464e-05,2]
[421117556,1777084191538,-500.0,7.464e-05,2]
[421117557,1777084191567,-500.0,7.464e-05,2]
[421117558,1777084191595,-554.29470187,7.464e-05,2]
[421117559,1777084191711,-14.11799734,7.464e-05,2]
[421117560,1777084191744,-500.0,7.464e-05,2]
[421117561,1777084191778,-500.0,7.464e-05,2]
[421117562,1777084191816,-500.0,7.464e-05,2]
[421117563,1777084191851,-500.0,7.464e-05,2]
[421117564,1777084191886,-500.0,7.464e-05,2]
[421117565,1777084191923,-500.0,7.464e-05,2]
[421117566,1777084191959,-500.0,7.464e-05,2]
[421117567,1777084191994,-500.0,7.464e-05,2]
[421117568,1777084192030,-500.0,7.464e-05,2]
[421117569,1777084192066,-471.77400532,7.464e-05,2]
[421117570,1777084192182,-28.22599468,7.464e-05,2]
[421117571,1777084192218,-500.0,7.464e-05,2]
[421117572,1777084192254,-500.0,7.464e-05,2]
[421117573,1777084192290,-500.0,7.464e-05,2]
[421117574,1777084192326,-500.0,7.464e-05,2]
[421117575,1777084192368,-500.0,7.464e-05,2]
[421117576,1777084192406,-500.0,7.464e-05,2]
[421117577,1777084192443,-500.0,7.464e-05,2]
[421117578,1777084192482,-500.0,7.464e-05,2]
[421117579,1777084192518,-500.0,7.464e-05,2]
[421117580,1777084192556,-443.55801064,7.464e-05,2]
[421117581,1777084192692,-56.44198936,7.464e-05,2]
[421117582,1777084192728,-500.0,7.464e-05,2]
[421117583,1777084192764,-500.0,7.464e-05,2]
[421117584,1777084192799,-500.0,7.464e-05,2]
[421117585,1777084192836,-500.0,7.464e-05,2]
[421117586,1777084192878,-500.0,7.464e-05,2]
[421117587,1777084192915,-500.0,7.464e-05,2]
[421117588,1777084192953,-500.0,7.464e-05,2]
[421117589,1777084192991,-500.0,7.464e-05,2]
[421117590,1777084193028,-386.98328722,7.464e-05,2]
[421117591,1777084193066,-500.0,7.464e-05,2]
[421117592,1777084193176,-500.0,7.464e-05,2]
[421117593,1777084193212,-500.0,7.464e-05,2]
[421117594,1777084193650,-307.49,7.464e-05,2]
[421117595,1777084201188,1200.0,7.464e-05,2]
[421117596,1777084201238,300.0,7.464e-05,2]
[421117597,1777084201275,300.0,7.464e-05,2]
[421117598,1777084201933,150.0,7.464e-05,2]
[421117599,1777084206560,300.0,7.464e-05,2]
[421117600,1777084208504,10000.01,7.365e-05,2]
[421117601,1777084208530,10000.01,7.365e-05,2]
[421117602,1777084208556,10000.01,7.365e-05,2]
[421117603,1777084208582,10000.01,7.365e-05,2]
[421117604,1777084232247,-829.98709775,7.365e-05,2]
[421117605,1777084232259,-913813.60421079,7.365e-05,2]
[421117606,1777084232271,-84751.23960127,7.365e-05,2]
[421117607,1777084232282,-119107.97701496,7.365e-05,2]
[421117608,1777084232293,-1254.41808677,7.365e-05,2]
[421117609,1777084232308,-940.11642928,7.365e-05,2]
[421117610,1777084232319,-259.79291513,7.365e-05,2]
[421117611,1777084232422,-1085.39999998,7.365e-05,2]
[421117612,1777084232483,-1281.47839901,7.365e-05,2]
[421117613,1777084232541,-725.20391044,7.365e-05,2]
[421117616,1777084238506,-4884.03653462,7.365e-05,2]
[421117617,1777084238516,-1198.0,7.568e-05,3]
[421117618,1777084238526,-189.0,7.568e-05,3]
[421117619,1777084238536,-4428.7971153,7.568e-05,2]
[421117620,1777084238545,-1532.0,7.568e-05,2]
[421117621,1777084238554,-1532.0,7.568e-05,2]
[421117622,1777084238564,-1532.0,7.568e-05,2]
[421117623,1777084238574,-1532.0,7.568e-05,2]
[421117624,1777084238593,-1076.98290339,7.568e-05,2]
[421117625,1777084238603,-1532.0,7.568e-05,2]
[421117626,1777084238613,-1532.0,7.568e-05,2]
[421117627,1777084238623,-193.30678905,7.568e-05,2]
[421117628,1777084238632,-500.0,7.568e-05,2]
[421117629,1777084238643,-981.9783664,7.568e-05,2]
[421117630,1777084238652,-1532.0,7.568e-05,2]
[421117631,1777084238662,-1532.0,7.568e-05,2]
[421117632,1777084238674,-7178.01,7.667e-05,2]
[421117633,1777084238686,-999.99,7.667e-05,2]
[421117634,1777084238696,-24138.76565111,7.667e-05,2]
[421117639,1777084239770,-11528.66434889,7.667e-05,2]
[421117640,1777084239781,-1213.1,7.667e-05,2]
[421117641,1777084239792,-971.45,7.667e-05,2]
[421117642,1777084239802,-299.99,7.667e-05,2]
[421117643,1777084239812,-150.99,7.667e-05,2]
[421117644,1777084239823,-250.0,7.7e-05,2]
[421117645,1777084239833,-446.49293495,7.734e-05,2]
[421117646,1777084239854,-123.94706505,7.734e-05,2]
[421117647,1777084239864,-307.49,7.738e-05,2]
[421117648,1777084239875,-151.0,7.752e-05,2]
[421117649,1777084239885,-392.57,7.753e-05,2]
[421117650,1777084239896,-307.49987675,8.012e-05,2]
[421117651,1777084239912,-251.92953522,8.036e-05,2]
[421117652,1777084239921,-1501.04477053,8.083e-05,2]
[421117653,1777084239931,-210.76862572,8.115e-05,2]
[421117654,1777084239940,-717.90306407,8.115e-05,2]
[421117655,1777084239950,-200.0,8.115e-05,2]
[421117656,1777084239959,-174.61919141,8.115e-05,2]
[421117657,1777084239968,-548.31044808,8.163e-05,2]
[421117658,1777084239977,-4789.701694,8.178e-05,2]
[421117659,1777084239988,-1680.0,8.21e-05,2]
[421117660,1777084239997,-255.0,8.21e-05,2]
[421117661,1777084240007,-250.0,8.211e-05,2]
[421117662,1777084240017,-500.0,8.219e-05,2]
[421117663,1777084240026,-500.0,8.219e-05,2]
[421117664,1777084240035,-534.22490797,8.219e-05,2]
[421117665,1777084240045,-155.0,8.32e-05,2]
[421117666,1777084240054,-1198.0,8.328e-05,3]
[421117667,1777084240064,-189.0,8.328e-05,3]
[421117668,1777084240074,-150.0,8.359e-05,2]
[421117669,1777084240083,-150.0,8.359e-05,2]
[421117670,1777084240093,-150.0,8.359e-05,2]
[421117671,1777084240103,-150.0,8.359e-05,2]
[421117672,1777084240113,-150.0,8.359e-05,2]
[421117673,1777084240123,-150.00000001,8.359e-05,2]
[421117674,1777084240133,-150.0,8.359e-05,2]
[421117675,1777084240142,-150.0,8.359e-05,2]
[421117676,1777084240152,-150.0,8.359e-05,2]
[421117677,1777084240162,-150.0,8.452e-05,2]
[421117678,1777084240171,-150.0,8.545e-05,2]
[421117679,1777084240181,-490.0,8.56e-05,5]
[421117680,1777084240191,-644.0,8.56e-05,5]
[421117681,1777084240200,-151.0,8.568e-05,2]
[421117682,1777084240210,-392.69,8.575e-05,2]
[421117683,1777084240220,-483.04,8.575e-05,2]
[421117684,1777084240230,-150.0,8.591e-05,2]
[421117685,1777084240240,-250.27590852,8.599e-05,2]
[421117686,1777084240249,-150.0,8.638e-05,2]
[421117687,1777084240258,-225.7306274,8.655e-05,2]
[421117691,1777084240915,-561.22993896,8.655e-05,2]
[421117692,1777084240975,-201.23764324,8.655e-05,2]
[421117694,1777084240984,-200.0,8.663e-05,2]
[421117695,1777084240994,-51.53577534,8.663e-05,2]
[421117711,1777084247357,-129.54432615,8.663e-05,2]
[421117712,1777084247367,-150.0,8.73e-05,2]
[421117713,1777084247376,-151.0,8.771e-05,2]
[421117714,1777084247385,-151.0,8.774e-05,2]
[421117715,1777084247395,-151.0,8.774e-05,2]
[421117716,1777084247405,-152.70172,8.774e-05,2]
[421117717,1777084247416,-432.190137,8.774e-05,2]
[421117718,1777084247426,-432.190137,8.774e-05,2]
[421117719,1777084247436,-432.190137,8.774e-05,2]
[421117720,1777084247446,-269.60088119,8.774e-05,2]
[421117721,1777084247460,-162.58925581,8.774e-05,2]
[421117722,1777084247470,-150.0,8.823e-05,2]
[421117723,1777084247480,-150.0,8.823e-05,2]
[421117724,1777084247490,-150.0,8.823e-05,2]
[421117725,1777084247500,-110.30624579,8.823e-05,2]
[421117738,1777084622617,-500.0,7.205e-05,2]
[421117739,1777084622647,-250.0,7.284e-05,2]
[421117740,1777084622675,-1200.0,7.363e-05,2]
[421117741,1777084622703,-150.0,7.363e-05,2]
[421117742,1777084622732,-500.0,7.364e-05,2]
[421117743,1777084622761,-597.88888944,7.364e-05,2]
[421117744,1777084622795,-500.0,7.364e-05,2]
[421117745,1777084622831,-500.0,7.364e-05,2]
[421117746,1777084622865,-500.0,7.364e-05,2]
[421117747,1777084622901,-104.23222112,7.364e-05,2]
[421117748,1777084623073,-395.76777888,7.364e-05,2]
[421117749,1777084623109,-500.0,7.364e-05,2]
[421117750,1777084623143,-189.33843412,7.364e-05,2]
[421117751,1777084623177,-500.0,7.364e-05,2]
[421117752,1777084623211,-500.0,7.364e-05,2]
[421117753,1777084623244,-500.0,7.364e-05,2]
[421117754,1777084623279,-500.0,7.364e-05,2]
[421117755,1777084623313,-500.0,7.364e-05,2]
[421117756,1777084623348,-500.0,7.364e-05,2]
[421117757,1777084623380,-500.0,7.364e-05,2]
[421117758,1777084623413,-329.797574,7.364e-05,2]
[421117759,1777084623498,-170.202426,7.364e-05,2]
[421117760,1777084623534,-500.0,7.364e-05,2]
[421117761,1777084623568,-500.0,7.364e-05,2]
[421117762,1777084623602,-500.0,7.364e-05,2]
[421117763,1777084623636,-500.0,7.364e-05,2]
[421117764,1777084623671,-500.0,7.364e-05,2]
[421117765,1777084623704,-500.0,7.364e-05,2]
[421117766,1777084623738,-500.0,7.364e-05,2]
[421117767,1777084623773,-500.0,7.364e-05,2]
[421117768,1777084623808,-204.04590705,7.364e-05,2]
[421117769,1777084682674,300.0,7.364e-05,2]
[421117770,1777084741296,300.0,7.364e-05,2]
[421117771,1777084742010,150.0,7.364e-05,2]
[421117772,1777084744545,300.0,7.364e-05,2]
[421117773,1777084745481,201.5133339,7.364e-05,2]
[421117774,1777084745506,298.4866661,7.364e-05,2]
[421117775,1777084745551,268.52222261,7.364e-05,2]
[421117776,1777084757836,500.0,7.364e-05,2]